bitfinex-derivatives/quotes_BTCF0:USTF0_20251216
["timestamp","ask_amount","ask_price","bid_price","bid_amount"]
[1765864730167,0.12239,86049.0,86048.0,0.15490436]
[1765864730368,0.12239,86049.0,86048.0,0.11869436]
[1765864730567,0.12239,86049.0,86048.0,0.00017436]
[1765864731158,0.12039,86049.0,86048.0,0.05889436]
[1765864731359,0.12139,86049.0,86048.0,0.05889436]
[1765864731671,0.12139,86049.0,86048.0,0.11869436]
[1765864731872,0.12039,86049.0,86048.0,0.11869436]
[1765864732170,0.12239,86049.0,86048.0,0.11869436]
[1765864733660,0.12039,86049.0,86048.0,0.11869436]
[1765864733970,0.12139,86049.0,86048.0,0.11869436]
[1765864743868,0.12139,86049.0,86048.0,0.15090436]
[1765864746073,0.12139,86049.0,86048.0,0.11869436]
[1765864750283,0.002,86049.0,86048.0,0.15090436]
[1765864751279,0.002,86049.0,86048.0,0.51170436]
[1765864751477,0.001,86049.0,86048.0,0.51170436]
[1765864751678,0.002,86049.0,86048.0,0.51170436]
[1765864752890,0.001,86049.0,86048.0,0.51170436]
[1765864753086,0.002,86049.0,86048.0,0.51170436]
[1765864758885,0.00017436,86057.0,86056.0,0.12862]
[1765864759189,0.00017436,86057.0,86056.0,0.1402428]
[1765864759891,0.1585296,86080.0,86079.0,0.1124]
[1765864760190,0.11402,86074.0,86073.0,0.41916]
[1765864760389,0.01402,86074.0,86073.0,0.41916]
[1765864760591,0.07031,86074.0,86073.0,0.4732]
[1765864761182,0.07031,86074.0,86073.0,0.4851345]
[1765864761787,0.07331,86074.0,86073.0,0.4851345]
[1765864762588,0.43411,86074.0,86073.0,0.0119345]
[1765864762796,0.11402,86066.0,86065.0,0.11257426]
[1765864763998,0.11602,86066.0,86065.0,0.11257426]
[1765864764189,0.11602,86066.0,86065.0,0.12447619]
[1765864764385,0.11802,86066.0,86065.0,0.12447619]
[1765864764695,0.47882,86066.0,86065.0,0.01207619]
[1765864771602,0.47882,86066.0,86065.0,0.07043619]
[1765864772100,0.47882,86066.0,86065.0,0.15668619]
[1765864773302,0.47882,86066.0,86065.0,0.12447619]
[1765864774390,0.47882,86066.0,86065.0,0.07043619]
[1765864774595,0.47882,86066.0,86065.0,0.01207619]
[1765864775893,0.47882,86066.0,86065.0,0.06901619]
[1765864778800,0.11525,86053.0,86052.0,0.15023]
[1765864780007,0.11625,86053.0,86052.0,0.15023]
[1765864780206,0.1278733,86053.0,86052.0,0.1621227]
[1765864781300,0.1288733,86053.0,86052.0,0.1621227]
[1765864787914,0.002,86053.0,86052.0,0.1621227]
[1765864788212,0.11725,86053.0,86052.0,0.1621227]
[1765864800522,0.002,86053.0,86052.0,0.1621227]
[1765864805030,0.002,86053.0,86052.0,0.2021227]
[1765864806027,0.002,86053.0,86052.0,0.8890827]
[1765864806223,0.002,86053.0,86052.0,0.9390827]
[1765864806728,0.00017426,86061.0,86060.0,0.1579123]
[1765864806916,0.00017426,86061.0,86060.0,0.5187123]
[1765864807335,0.11488,86070.0,86069.0,0.17151]
[1765864809131,0.11488,86070.0,86069.0,0.1141]
[1765864809633,0.11788,86070.0,86069.0,0.1141]
[1765864810228,0.05995,86070.0,86069.0,0.1141]
[1765864810430,0.11788,86070.0,86069.0,0.1141]
[1765864810629,0.12088,86070.0,86069.0,0.1141]
[1765864815434,0.006,86070.0,86069.0,0.1141]
[1765864816029,0.006,86070.0,86069.0,0.4749]
[1765864816829,0.06295,86070.0,86069.0,0.4749]
[1765864817635,0.006,86070.0,86069.0,0.4749]
[1765864825439,0.06295,86070.0,86069.0,0.4749]
[1765864828238,0.006,86070.0,86069.0,0.4749]
[1765864829031,0.00017426,86078.0,86077.0,0.12572]
[1765864829233,0.1264986,86088.0,86087.0,0.1141]
[1765864831839,0.1334986,86088.0,86087.0,0.1141]
[1765864833633,0.12188,86088.0,86087.0,0.1141]
[1765864834742,0.1198799,86078.0,86077.0,0.46842]
[1765864834948,0.119881,86070.0,86069.0,0.59203426]
[1765864835345,0.10826,86070.0,86069.0,0.59203426]
[1765864836353,0.05545426,86078.0,86077.0,0.10762]
[1765864836551,0.11143426,86078.0,86077.0,0.10762]
[1765864836943,0.00317426,86078.0,86077.0,0.10762]
[1765864837443,0.10843426,86078.0,86077.0,0.11924]
[1765864837648,0.00017426,86078.0,86077.0,0.11924]
[1765864838244,0.00317426,86078.0,86077.0,0.11924]
[1765864839943,0.05545426,86078.0,86077.0,0.11924]
[1765864841043,0.11143426,86078.0,86077.0,0.11924]
[1765864842639,0.11143426,86078.0,86077.0,0.10762]
[1765864845342,0.00317426,86078.0,86077.0,0.10762]
[1765864847347,0.11143426,86078.0,86077.0,0.10762]
[1765864848348,0.05545426,86078.0,86077.0,0.10762]
[1765864849548,0.12305416,86078.0,86077.0,0.10762]
[1765864853861,0.10826,86076.0,86075.0,0.10762]
[1765864854360,0.10826,86076.0,86075.0,0.14116]
[1765864855464,0.11126,86076.0,86075.0,0.14116]
[1765864857957,0.003,86076.0,86075.0,0.14116]
[1765864858965,0.05528,86076.0,86075.0,0.14116]
[1765864859164,0.11126,86076.0,86075.0,0.14116]
[1765864860769,0.11126,86076.0,86075.0,0.86784]
[1765864865868,0.003,86076.0,86075.0,0.86784]
[1765864867683,0.003,86076.0,86075.0,0.90784]
[1765864867878,0.003,86076.0,86075.0,0.86784]
[1765864868779,0.0116175,86096.0,86076.0,0.0116201]
[1765864868978,0.0116175,86096.0,86095.0,0.10021]
[1765864868979,0.1135975,86096.0,86095.0,0.10021]
[1765864869173,0.14783979,86096.0,86095.0,0.10021]
[1765864869483,0.1135975,86096.0,86095.0,0.10021]
[1765864870583,0.1155975,86096.0,86095.0,0.10021]
[1765864871078,0.1135975,86096.0,86095.0,0.10021]
[1765864871276,0.1155975,86096.0,86095.0,0.10021]
[1765864879380,0.1135975,86096.0,86095.0,0.10021]
[1765864879580,0.1145975,86096.0,86095.0,0.10021]
[1765864881789,0.001,86096.0,86095.0,0.10021]
[1765864882679,0.05402,86096.0,86095.0,0.10021]
[1765864882884,0.10298,86096.0,86095.0,0.10021]
[1765864883996,0.05402,86096.0,86095.0,0.10021]
[1765864884493,0.001,86096.0,86095.0,0.10021]
[1765864886196,0.10298,86096.0,86095.0,0.10021]
[1765864886598,0.001,86096.0,86095.0,0.10021]
[1765864886999,0.05402,86096.0,86095.0,0.19306556]
[1765864887398,0.10298,86096.0,86095.0,0.10021]
[1765864891204,0.10298,86096.0,86095.0,0.05198]
[1765864891405,0.10298,86096.0,86095.0,0.10021]
[1765864894808,0.09408,86093.0,86092.0,0.12244]
[1765864895110,0.09408,86093.0,86092.0,0.046]
[1765864895312,0.09408,86093.0,86092.0,0.09508]
[1765864896402,0.09508,86093.0,86092.0,0.09508]
[1765864897396,0.1056984,86089.0,86088.0,0.12244]
[1765864906110,0.0593681,86092.0,86091.0,0.09508]
[1765864906306,0.0116181,86092.0,86091.0,0.45588]
[1765864906506,0.0593681,86092.0,86091.0,0.45588]
[1765864906704,0.1056976,86095.0,86094.0,0.09508]
[1765864906907,0.13981618,86095.0,86094.0,0.09508]
[1765864907508,0.1056976,86095.0,86094.0,0.09508]
[1765864908015,0.0126176,86095.0,86094.0,0.09508]
[1765864908209,0.0603676,86095.0,86094.0,0.09508]
[1765864909917,0.1066976,86095.0,86094.0,0.09508]
[1765864910213,0.0603676,86095.0,86094.0,0.09508]
[1765864911018,0.1066976,86095.0,86094.0,0.09508]
[1765864913916,0.09508,86095.0,86094.0,0.09508]
[1765864915310,0.001,86095.0,86094.0,0.09508]
[1765864924929,0.09554,86095.0,86094.0,0.09508]
[1765864929532,0.04721,86095.0,86094.0,0.09508]
[1765864930430,0.09554,86095.0,86094.0,0.09508]
[1765864934935,0.09454,86093.0,86092.0,0.1254]
[1765864936234,0.09554,86093.0,86092.0,0.1254]
[1765864941943,0.04721,86093.0,86092.0,0.1254]
[1765864942142,0.001,86093.0,86092.0,0.1254]
[1765864943644,0.001,86093.0,86092.0,0.1754]
[1765864943848,0.001,86093.0,86092.0,0.1254]
[1765864944840,0.001,86093.0,86092.0,0.85176]
[1765864945343,0.00232295,86098.0,86097.0,0.1080173]
[1765864945547,0.09471426,86104.0,86103.0,0.1080165]
[1765864947859,0.09571426,86104.0,86103.0,0.0964]
[1765864949364,0.09571426,86104.0,86103.0,0.1080165]
[1765864952467,0.04738426,86104.0,86103.0,0.1080165]
[1765864954069,0.00117426,86104.0,86103.0,0.1080165]
[1765864955265,0.04833426,86104.0,86103.0,0.1080165]
[1765864955960,0.3608,86124.0,86114.0,0.1077949]
[1765864955961,0.09694,86115.0,86114.0,0.1077949]
[1765864956165,0.13095962,86115.0,86114.0,0.1077949]
[1765864956364,0.09694,86115.0,86114.0,0.1077949]
[1765864957272,0.09794,86115.0,86114.0,0.1077949]
[1765864958572,0.09794,86115.0,86114.0,0.11975092]
[1765864959868,0.04816,86115.0,86114.0,0.11975092]
[1765864960066,0.001,86115.0,86114.0,0.11975092]
[1765864960474,0.09711426,86123.0,86122.0,0.1077939]
[1765864960664,0.09110266,86123.0,86122.0,0.4685939]
[1765864962976,0.04132266,86123.0,86122.0,0.4685939]
[1765864963373,0.09110266,86123.0,86122.0,0.4685939]
[1765864963571,0.09705561,86131.0,86130.0,0.09618]
[1765864969578,0.04727561,86131.0,86130.0,0.09618]
[1765864969772,0.00011561,86131.0,86130.0,0.09618]
[1765864970483,0.09705561,86131.0,86130.0,0.09618]
[1765864971977,0.00011561,86131.0,86130.0,0.09618]
[1765864972177,0.3608,86156.0,86137.0,0.1077919]
[1765864972380,0.17820255,86150.0,86137.0,0.4685919]
[1765864973177,0.45774,86156.0,86155.0,0.09618]
[1765864975576,0.09694,86156.0,86155.0,0.45698]
[1765864975782,0.04716,86156.0,86155.0,0.45698]
[1765864976272,0.17820255,86170.0,86169.0,0.09618]
[1765864976273,0.27514255,86170.0,86169.0,0.09618]
[1765864976478,0.09694,86170.0,86169.0,0.09618]
[1765864977282,0.09694,86170.0,86169.0,0.45698]
[1765864977680,0.04716,86170.0,86169.0,0.46863293]
[1765864977883,0.09926079,86178.0,86177.0,0.09618]
[1765864980183,0.09926079,86178.0,86177.0,0.1077865]
[1765864980988,0.09926079,86178.0,86177.0,0.09618]
[1765864985184,0.00232079,86178.0,86177.0,0.09618]
[1765864986088,7.9e-07,86178.0,86177.0,0.09618]
[1765864986486,7.9e-07,86178.0,86177.0,0.14618]
[1765864987181,7.9e-07,86178.0,86177.0,0.13618]
[1765864987485,7.9e-07,86178.0,86177.0,0.09618]
[1765864988589,7.9e-07,86178.0,86177.0,0.14618]
[1765864989692,7.9e-07,86178.0,86177.0,0.09618]
[1765864989893,0.09542,86190.0,86189.0,0.1049449]
[1765864990081,0.09542,86190.0,86189.0,0.4657449]
[1765864990595,0.0116036,86199.0,86195.0,0.12058]
[1765864991184,0.0116032,86202.0,86200.0,0.07349]
[1765864991389,0.03361151,86201.0,86200.0,0.07349]
[1765864991691,0.0116028,86206.0,86205.0,0.12058]
[1765864991883,0.04520849,86206.0,86205.0,0.12058]
[1765864992083,0.04520806,86206.0,86205.0,0.12058]
[1765864992286,0.04520806,86206.0,86205.0,0.02724]
[1765864997086,0.04520806,86206.0,86205.0,0.07349]
[1765864997390,0.04520806,86206.0,86205.0,0.02724]
[1765864999288,0.04520806,86206.0,86205.0,0.12058]
[1765864999485,0.04520806,86206.0,86205.0,0.07349]
[1765864999685,0.04520806,86206.0,86205.0,0.02724]
[1765864999994,0.04520806,86206.0,86205.0,0.12058]
[1765865000696,0.04520806,86206.0,86205.0,0.02724]
[1765865000895,0.04520806,86206.0,86205.0,0.07349]
[1765865001491,0.04520806,86206.0,86205.0,0.12058]
[1765865006788,0.04520806,86206.0,86205.0,0.02724]
[1765865007988,0.10792993,86206.0,86205.0,0.02724]
[1765865008294,0.04520806,86206.0,86205.0,0.02724]
[1765865008886,0.04520806,86206.0,86205.0,0.12058]
[1765865010698,0.04520806,86206.0,86205.0,0.02724]
[1765865011098,0.04520806,86206.0,86195.0,0.02724]
[1765865011290,0.372404,86196.0,86195.0,0.02724]
[1765865011496,0.46852513,86196.0,86195.0,0.02724]
[1765865011795,0.0116049,86189.0,86188.0,0.02741405]
[1765865011997,0.40601016,86189.0,86188.0,0.02741405]
[1765865017392,0.40601016,86189.0,86188.0,0.07487405]
[1765865017906,0.40601016,86189.0,86188.0,0.02741405]
[1765865018797,0.40601016,86189.0,86188.0,0.07487405]
[1765865019606,0.40601016,86189.0,86188.0,0.02741405]
[1765865021102,0.40601016,86189.0,86188.0,0.07487405]
[1765865021496,0.40601016,86189.0,86188.0,0.12522405]
[1765865024194,0.04521016,86189.0,86188.0,0.12522405]
[1765865024395,0.04521016,86189.0,86188.0,0.07487405]
[1765865024601,0.40601016,86189.0,86188.0,0.02741405]
[1765865026308,0.40601016,86189.0,86188.0,0.12522405]
[1765865027304,0.40601016,86189.0,86188.0,0.07487405]
[1765865027510,0.40601016,86189.0,86188.0,0.02741405]
[1765865027711,0.40601016,86189.0,86188.0,0.00017405]
[1765865028008,0.0141655,86185.0,86184.0,0.02724]
[1765865028310,0.04777076,86185.0,86184.0,0.02724]
[1765865028901,0.014276,86181.0,86180.0,0.02724]
[1765865029102,0.375076,86181.0,86180.0,0.12505]
[1765865030101,0.014276,86181.0,86180.0,0.12505]
[1765865039514,0.00017335,86189.0,86188.0,0.12611]
[1765865039709,0.03985825,86189.0,86188.0,0.12611]
[1765865040524,0.07263387,86189.0,86188.0,0.12611]
[1765865043009,0.07263387,86189.0,86188.0,0.0283]
[1765865043209,0.0407655,86185.0,86184.0,0.0283]
[1765865043413,0.43434112,86185.0,86184.0,0.0283]
[1765865043820,0.43434112,86185.0,86184.0,0.07937]
[1765865044321,0.43434112,86185.0,86184.0,0.0283]
[1765865044523,0.43434112,86185.0,86184.0,0.07937]
[1765865046524,0.43434112,86185.0,86184.0,0.0283]
[1765865046927,0.43434112,86185.0,86184.0,0.12775]
[1765865049121,0.43434112,86185.0,86172.0,0.02822405]
[1765865049122,0.0419871,86173.0,86172.0,0.02822405]
[1765865049328,0.43556993,86173.0,86172.0,0.12767405]
[1765865049526,0.43556993,86173.0,86172.0,1.62767405]
[1765865050124,0.4027871,86173.0,86172.0,1.62767405]
[1765865050431,0.4027871,86173.0,86172.0,0.12767405]
[1765865051131,0.43555866,86173.0,86172.0,0.00017405]
[1765865052618,0.43555866,86173.0,86172.0,5e-08]
[1765865052822,0.43655866,86173.0,86172.0,5e-08]
[1765865053326,0.43555866,86173.0,86172.0,5e-08]
[1765865053524,0.43755866,86173.0,86172.0,5e-08]
[1765865054724,0.0426476,86169.0,86168.0,1.52805]
[1765865054931,0.07541916,86169.0,86168.0,1.5]
[1765865055233,0.07541916,86169.0,86165.0,0.012023]
[1765865055234,0.043128,86166.0,86165.0,0.012023]
[1765865055424,0.43669956,86166.0,86164.0,0.02805]
[1765865055626,0.06429156,86165.0,86164.0,0.07912]
[1765865055826,0.06429156,86165.0,86164.0,1.57912]
[1765865056729,0.06529156,86165.0,86164.0,1.57912]
[1765865057140,0.03252,86165.0,86164.0,1.57912]
[1765865058335,0.03252,86165.0,86164.0,1.59103192]
[1765865063741,0.001,86165.0,86164.0,1.59103192]
[1765865065043,0.01746,86165.0,86164.0,1.59103192]
[1765865065546,0.001,86165.0,86164.0,1.59103192]
[1765865065743,0.01762,86165.0,86164.0,1.59103192]
[1765865066138,0.001,86165.0,86164.0,1.59103192]
[1765865070753,0.03504,86165.0,86164.0,1.59103192]
[1765865075339,0.001,86165.0,86164.0,1.59103192]
[1765865076349,0.3608,86167.0,86166.0,0.10039]
[1765865076552,0.17789584,86180.0,86177.0,0.10039]
[1765865076750,0.03261166,86179.0,86177.0,0.10039]
[1765865076943,0.04421806,86178.0,86177.0,0.10039]
[1765865077456,0.09648806,86178.0,86177.0,0.10039]
[1765865077751,0.09748806,86178.0,86177.0,0.10039]
[1765865077954,0.04521806,86178.0,86177.0,0.10039]
[1765865078346,0.0126064,86178.0,86177.0,0.10039]
[1765865086058,0.1167764,86178.0,86177.0,0.10039]
[1765865086647,0.0126064,86178.0,86177.0,0.10039]
[1765865089558,0.0648764,86178.0,86177.0,0.10039]
[1765865089757,0.1167764,86178.0,86177.0,0.10039]
[1765865091859,0.0126064,86178.0,86177.0,0.10039]
[1765865093259,0.1167764,86178.0,86177.0,0.10039]
[1765865097762,0.0126064,86178.0,86177.0,0.10039]
[1765865097964,0.0648764,86178.0,86177.0,0.10039]
[1765865099559,0.1167764,86178.0,86177.0,0.10039]
[1765865100756,0.0648764,86178.0,86177.0,0.10039]
[1765865100952,0.1167764,86178.0,86177.0,0.10039]
[1765865101165,0.0126064,86178.0,86177.0,0.10039]
[1765865101357,0.0648764,86178.0,86177.0,0.10039]
[1765865101758,0.0126064,86178.0,86177.0,0.10039]
[1765865102267,0.0648764,86178.0,86177.0,0.10039]
[1765865102464,0.1180664,86178.0,86177.0,0.10039]
[1765865104267,0.0126064,86178.0,86177.0,0.10039]
[1765865113876,0.01177825,86189.0,86188.0,0.13188]
[1765865114066,0.11392825,86189.0,86188.0,0.13188]
[1765865127896,0.01177825,86189.0,86188.0,0.13188]
[1765865128291,0.00017335,86189.0,86188.0,0.13188]
[1765865137203,0.00017335,86189.0,86188.0,1.63188]
[1765865145004,0.4772022,86209.0,86208.0,0.14123]
[1765865145207,0.50972292,86209.0,86208.0,0.14123]
[1765865145890,0.50972292,86209.0,86208.0,0.15301748]
[1765865149197,0.50972292,86209.0,86208.0,0.12094748]
[1765865150107,0.50972292,86209.0,86208.0,0.15301748]
[1765865150805,0.50972292,86209.0,86208.0,0.12094748]
[1765865152100,0.50972292,86209.0,86208.0,0.15301748]
[1765865152705,0.50972292,86209.0,86208.0,1.65301748]
[1765865158909,0.4772013,86216.0,86215.0,0.10916]
[1765865159211,0.40491379,86216.0,86215.0,0.10916]
[1765865159514,0.50971379,86216.0,86215.0,0.10916]
[1765865162303,0.4772013,86216.0,86215.0,0.10916]
[1765865165514,0.3608,86216.0,86215.0,0.10916]
[1765865165718,0.00017405,86217.0,86216.0,0.1146013]
[1765865165902,0.00017405,86217.0,86216.0,0.4754013]
[1765865166907,0.00017405,86217.0,86216.0,0.4774013]
[1765865167404,0.1188597,86229.0,86228.0,0.135]
[1765865168908,0.05337,86229.0,86228.0,0.135]
[1765865169211,0.1188591,86233.0,86232.0,0.13559]
[1765865170609,0.0649691,86233.0,86232.0,0.13559]
[1765865170809,0.1188591,86233.0,86232.0,0.13559]
[1765865173615,0.0115991,86233.0,86232.0,0.13559]
[1765865173822,0.172228,86241.0,86240.0,0.13559]
[1765865175319,0.118858,86241.0,86240.0,0.13559]
[1765865183523,0.31643817,86250.0,86249.0,0.103]
[1765865183717,0.1388567,86250.0,86249.0,0.103]
[1765865190636,0.00231864,86258.0,86257.0,0.103]
[1765865190832,0.10957864,86258.0,86257.0,0.4638]
[1765865191642,0.10957864,86258.0,86257.0,0.103]
[1765865191940,0.10957864,86258.0,86257.0,0.001]
[1765865192331,0.10957864,86258.0,86257.0,0.05316]
[1765865192537,0.10957864,86258.0,86257.0,0.10476]
[1765865192738,0.14182747,86258.0,86257.0,0.001]
[1765865193034,0.1136078,86242.0,86241.0,0.10043394]
[1765865193824,0.1136078,86242.0,86241.0,0.00017394]
[1765865194034,0.04385979,86242.0,86222.0,0.10026]
[1765865194324,0.1136103,86223.0,86222.0,0.10026]
[1765865194931,0.17758147,86232.0,86212.0,0.0001335]
[1765865194932,0.1136113,86216.0,86215.0,0.12911]
[1765865195433,0.10201,86216.0,86215.0,0.12911]
[1765865196035,0.10201,86216.0,86215.0,0.13111]
[1765865196237,0.10201,86216.0,86215.0,0.13211]
[1765865197426,0.10201,86216.0,86215.0,0.13011]
[1765865197626,0.10201,86216.0,86215.0,0.13211]
[1765865198040,0.05131,86216.0,86215.0,0.13211]
[1765865198244,0.05131,86216.0,86215.0,0.13011]
[1765865198441,0.05131,86216.0,86215.0,0.13111]
[1765865198642,0.1136105,86222.0,86221.0,0.10026]
[1765865200145,0.00017358,86224.0,86223.0,0.10026]
[1765865201948,0.00017358,86224.0,86223.0,0.10126]
[1765865202144,0.00017358,86224.0,86223.0,0.1128603]
[1765865203237,0.00017358,86224.0,86223.0,0.1138603]
[1765865204640,0.05148358,86224.0,86223.0,0.1138603]
[1765865205152,0.10218358,86224.0,86223.0,0.10226]
[1765865206143,0.05148358,86224.0,86223.0,0.10226]
[1765865206338,0.00017358,86224.0,86223.0,0.10226]
[1765865206945,0.00017358,86224.0,86223.0,0.82726]
[1765865213658,0.113609,86233.0,86232.0,0.10026]
[1765865214561,0.113609,86233.0,86230.0,0.4012493]
[1765865214562,0.46281,86246.0,86245.0,0.12911]
[1765865215646,0.46281,86246.0,86245.0,0.10026]
[1765865215851,0.46281,86246.0,86245.0,0.12911]
[1765865216251,0.4744072,86246.0,86245.0,0.12911]
[1765865218457,0.1136072,86246.0,86245.0,0.12911]
[1765865218761,0.1136072,86246.0,86245.0,0.10026]
[1765865219164,0.1136079,86241.0,86240.0,0.10026]
[1765865220062,0.1136079,86241.0,86240.0,0.12911]
[1765865220458,0.1136079,86241.0,86240.0,0.10026]
[1765865223261,0.1136079,86241.0,86240.0,0.12886]
[1765865224565,0.1136079,86241.0,86240.0,0.10026]
[1765865226764,0.1136079,86241.0,86240.0,0.12886]
[1765865229065,0.0115979,86241.0,86240.0,0.12886]
[1765865229570,0.1061979,86241.0,86240.0,0.12886]
[1765865230364,0.0946,86241.0,86240.0,0.12886]
[1765865238176,0.0115938,86272.0,86240.0,0.12886]
[1765865238177,0.3608,86276.0,86275.0,0.09515]
[1765865238380,0.1061924,86283.0,86280.0,0.0286]
[1765865238681,0.0946,86283.0,86282.0,0.09515]
[1765865238878,0.0946,86283.0,86282.0,0.10696044]
[1765865239180,0.3608,86296.0,86282.0,0.10696044]
[1765865239181,0.0115912,86292.0,86286.0,0.0286]
[1765865239381,0.1061906,86296.0,86295.0,0.09515]
[1765865239579,0.0946,86296.0,86295.0,0.09515]
[1765865247986,0.0946,86296.0,86295.0,0.12375]
[1765865250779,0.0946,86296.0,86295.0,0.09515]
[1765865251089,0.0946,86296.0,86295.0,0.12375]
[1765865251776,0.0946,86291.0,86290.0,0.45595]
[1765865252288,0.1061912,86291.0,86290.0,0.45595]
[1765865256891,0.1061912,86291.0,86290.0,0.48418]
[1765865262896,0.0115912,86291.0,86290.0,0.48418]
[1765865263496,0.0580912,86291.0,86290.0,0.48418]
[1765865263692,0.0465,86291.0,86290.0,0.48418]
[1765865263897,0.09583756,86298.0,86297.0,0.09303]
[1765865264091,0.10742786,86298.0,86297.0,0.09303]
[1765865265585,0.1051116,86288.0,86287.0,0.04558384]
[1765865265784,0.1051116,86288.0,86287.0,0.00017384]
[1765865265994,0.13659144,86288.0,86287.0,4e-08]
[1765865267493,0.13659144,86288.0,86287.0,0.09303004]
[1765865273199,0.04307144,86288.0,86287.0,4e-08]
[1765865273402,0.1051124,86282.0,86281.0,0.0021177]
[1765865273606,0.1051139,86271.0,86270.0,0.12126]
[1765865274392,0.1051139,86271.0,86270.0,0.13277919]
[1765865274601,0.0115939,86271.0,86270.0,0.13277919]
[1765865274795,0.1051139,86271.0,86270.0,0.13277919]
[1765865276704,0.1051139,86271.0,86270.0,0.05692919]
[1765865277003,0.09352,86270.0,86262.0,0.00017384]
[1765865277208,0.09352,86270.0,86269.0,0.45383]
[1765865278596,0.09352,86270.0,86269.0,0.46528777]
[1765865280904,0.0115939,86271.0,86270.0,0.12126]
[1765865284600,0.0561135,86274.0,86273.0,0.08954]
[1765865285201,0.00017349,86278.0,86277.0,0.1011331]
[1765865285606,0.00017349,86278.0,86277.0,0.08954]
[1765865286412,0.00017349,86278.0,86277.0,0.1011331]
[1765865286819,0.00017349,86278.0,86277.0,0.4619331]
[1765865288207,0.0115917,86288.0,86287.0,0.08954]
[1765865288711,0.4594409,86293.0,86292.0,0.08954]
[1765865288918,0.0986409,86293.0,86292.0,0.08954]
[1765865289113,0.0561109,86293.0,86292.0,0.08954]
[1765865289314,0.0986409,86293.0,86292.0,0.08954]
[1765865290013,0.0115909,86293.0,86292.0,0.08954]
[1765865290405,0.0561109,86293.0,86292.0,0.08954]
[1765865290605,0.0986409,86293.0,86292.0,0.08954]
[1765865293017,0.0986409,86293.0,86292.0,0.11641]
[1765865295724,0.0115909,86293.0,86292.0,0.11641]
[1765865296424,0.0561109,86293.0,86292.0,0.11641]
[1765865297925,0.0986409,86293.0,86292.0,0.11641]
[1765865298420,0.01390786,86298.0,86297.0,0.08954]
[1765865298614,0.10095786,86298.0,86297.0,0.08954]
[1765865299010,0.08705,86288.0,86280.0,0.20429813]
[1765865299214,0.0986416,86288.0,86287.0,0.08954]
[1765865300321,0.08936756,86298.0,86297.0,0.08954]
[1765865300521,0.10095786,86298.0,86297.0,0.08954]
[1765865305021,0.08705,86294.0,86293.0,0.08954]
[1765865305520,0.04452,86294.0,86293.0,0.08954]
[1765865305718,0.08705,86294.0,86293.0,0.08954]
[1765865311826,0.08705,86294.0,86293.0,0.1011309]
[1765865313223,0.08691756,86298.0,86297.0,0.08449]
[1765865316029,0.09850786,86298.0,86297.0,0.08449]
[1765865316636,0.08691756,86298.0,86297.0,0.08449]
[1765865317343,0.11825985,86298.0,86297.0,0.08449]
[1765865319332,0.08691756,86298.0,86297.0,0.08449]
[1765865321142,0.08691756,86298.0,86293.0,0.3723908]
[1765865321143,0.0961908,86294.0,86293.0,0.44529]
[1765865322441,0.0961908,86294.0,86293.0,0.3608]
[1765865322636,0.0961908,86294.0,86293.0,0.40437]
[1765865322845,0.0961908,86294.0,86293.0,0.44529]
[1765865323040,0.0961908,86294.0,86293.0,0.08449]
[1765865323240,0.1275357,86294.0,86293.0,0.08449]
[1765865323442,0.0961913,86290.0,86289.0,0.08466382]
[1765865328244,0.053321,86293.0,86292.0,0.11088]
[1765865328542,0.096191,86293.0,86292.0,0.11088]
[1765865329529,0.096191,86293.0,86292.0,0.08449]
[1765865330839,0.096191,86293.0,86292.0,0.0960811]
[1765865331046,0.0846,86293.0,86292.0,0.0960811]
[1765865333035,0.0846,86293.0,86292.0,0.1224711]
[1765865335838,0.0961909,86293.0,86292.0,0.11088]
[1765865336550,0.0961909,86293.0,86292.0,0.08449]
[1765865337438,0.0961909,86293.0,86292.0,0.11088]
[1765865339551,0.0961909,86293.0,86292.0,0.08449]
[1765865347760,0.0937213,86290.0,86289.0,0.04335382]
[1765865348058,0.0937213,86290.0,86289.0,0.08443382]
[1765865349755,0.12517268,86290.0,86289.0,0.00017382]
[1765865351359,0.0937231,86277.0,86276.0,0.11065]
[1765865352058,0.08213,86277.0,86276.0,0.11065]
[1765865352859,0.0403,86277.0,86276.0,0.11065]
[1765865353251,0.08213,86277.0,86276.0,0.11065]
[1765865354955,0.0937224,86283.0,86282.0,0.08426]
[1765865355164,0.0937224,86283.0,86282.0,0.44506]
[1765865356560,0.08213,86283.0,86282.0,0.44506]
[1765865359459,0.0403,86284.0,86283.0,0.08426]
[1765865359659,0.00017376,86285.0,86284.0,0.11034]
[1765865364664,0.00017376,86285.0,86284.0,0.11234]
[1765865365063,0.00017376,86285.0,86284.0,0.11334]
[1765865368064,0.15424,86317.0,86284.0,0.11334]
[1765865368065,0.44293,86320.0,86319.0,0.08426]
[1765865368366,0.08213,86309.0,86308.0,0.08426]
[1765865371962,0.56313507,86320.0,86307.0,0.3608]
[1765865371963,0.0937185,86311.0,86310.0,0.08426]
[1765865372771,0.0930989,86308.0,86307.0,0.4006]
[1765865373164,0.0930989,86308.0,86307.0,0.44301]
[1765865376860,0.0930989,86308.0,86307.0,0.3608]
[1765865377065,0.0930999,86301.0,86300.0,0.10579382]
[1765865378572,0.0930999,86301.0,86300.0,0.10679382]
[1765865379073,0.0919999,86301.0,86300.0,0.10679382]
[1765865380476,0.0115869,86323.0,86322.0,0.0398]
[1765865380679,0.0930964,86327.0,86326.0,0.08221]
[1765865381163,0.17734767,86336.0,86320.0,0.38421]
[1765865381164,0.0930972,86321.0,86320.0,0.46642]
[1765865381776,0.0930972,86321.0,86320.0,0.4006]
[1765865381963,0.0930972,86321.0,86320.0,0.44301]
[1765865382163,0.0930972,86321.0,86320.0,0.46642]
[1765865390676,0.3608,86336.0,86320.0,0.46642]
[1765865390872,0.08151,86321.0,86320.0,0.46642]
[1765865391285,0.0930971,86322.0,86321.0,0.08221]
[1765865394581,0.0930971,86322.0,86321.0,0.0398]
[1765865394784,0.0930971,86322.0,86321.0,0.08221]
[1765865395080,0.0930971,86322.0,86321.0,0.08321]
[1765865396476,0.0930971,86322.0,86321.0,0.08221]
[1765865399977,0.0930971,86322.0,86320.0,0.3608]
[1765865400183,0.0329593,86305.0,86297.0,0.44301]